Cogmind - Beta 14 @@@ ROGUE MODE // 2024.12.27 @ 10:48:57 Player: PTS Result: Destroyed by L-31 Rogue with Katana Performance ------------- Evolutions (1) 500 Regions Visited (2) 400 Robots Destroyed (17) 85 Value Destroyed (452) 452 Prototype IDs (2) 40 Alien Tech Used (0) 0 Bonus (2) 2 TOTAL SCORE: 1479 Bonus ------- High Alert Combat Kills 2 Cogmind --------- Core Integrity 0/400 Matter 144/300 Energy 76/100 System Corruption 8% Temperature Cool (6) Movement Core (50) Location -9/Materials Parts ------- > --- POWER (1) -------- (None) > --- PROPULSION (2) --- (None) > --- UTILITY (3) ------ (None) > --- WEAPON (3) ------- Hammer > --- INVENTORY (5) ---- (None) Peak State ------------ > --- POWER ------------ Improved Ion Engine > --- PROPULSION ------- Light Treads Light Treads > --- UTILITY ---------- Small Storage Unit Structural Scanner > --- WEAPON ----------- Light Assault Rifle Datajack > --- INVENTORY -------- (None) [Rating: 8] Favorites ----------- Power Ion Engine Engine Ion Engine Propulsion Wheel Treads Light Treads Wheel Wheel Utility Small Storage Unit Device Structural Scanner Storage Small Storage Unit Weapon Light Assault Rifle Ballistic Gun Light Assault Rifle Impact Weapon Hammer Special Melee Weapon Datajack Build | -11 -10 -9 ------- Run | Yrd Mat Mat Slots Evolved 2 | . . 2 Power . | . . . Propulsion . | . . . Utility 1 | . . 1 Weapon 1 | . . 1 Parts Attached 21 | 6 6 9 Power 3 | 1 1 1 Engine 3 | 1 1 1 Core . | . . . Reactor . | . . . Propulsion 6 | 2 2 2 Treads 2 | . . 2 Leg . | . . . Wheel 4 | 2 2 . Hover . | . . . Flight . | . . . Utility 3 | 1 1 1 Device 2 | . 1 1 Storage 1 | 1 . . Processor . | . . . Hackware . | . . . Protection . | . . . Artifact . | . . . Weapon 9 | 2 2 5 Energy Gun . | . . . Energy Cannon . | . . . Ballistic Gun 5 | 2 2 1 Ballistic Cannon . | . . . Launcher . | . . . Special Weapon . | . . . Impact Weapon 3 | . . 3 Slashing Weapon . | . . . Piercing Weapon . | . . . Special Melee Weapon 1 | . . 1 Unidentified Prototypes . | . . . Parts Lost 14 | . 5 9 Power 2 | . 1 1 Propulsion 5 | . 2 3 Utility 2 | . 1 1 Weapon 5 | . 1 4 Highest Loss Streak 6 | . 3 6 To Critical Strikes 1 | . . 1 Average Slot Usage (%) 68 | . 81 45 Engine 9 | . 12 4 Treads 2 | . . 7 Wheel 16 | . 23 2 Device 3 | . 1 7 Storage 12 | . 14 8 Ballistic Gun 21 | . 28 9 Special Melee Weapon 1 | . . 3 Peak Build Rating 8 | 6 6 8 Average Rating 5 | 4 5 4 On Entrance 3 | . 6 4 Naked Turns 18 | . . 18 Heaviest Build 15 | 12 14 15 Greatest Support 40 | 26 26 40 Greatest Overweight (x) 4 | . 4 4 Average Overweight (x) . | . . . Largest Inventory Capacity 8 | 8 8 8 Average Capacity 7 | 7 8 7 Most Carried 5 | 2 5 3 Average Carried 1 | . 2 . Final Capacity 8 | 8 8 5 Final Carried 2 | 2 2 . Class Distribution -------------------- 100% | Mutant Dominant Class ---------------- Mutant | -10/Materials Mutant | -9/Materials Resources | -11 -10 -9 ----------- Run | Yrd Mat Mat Matter Collected 319 | 85 171 63 Remotely . | . . . Salvage Created 469 | 38 368 63 Parts 33 | 9 18 6 Haulers Intercepted 1 | . 1 . Recyclers Shooed 1 | 1 . . Parts Field Recycled . | . . . Retrieved Matter . | . . . Parts Self-Destructed . | . . . Prevented . | . . . Kills | -11 -10 -9 ------- Run | Yrd Mat Mat Combat Hostiles Destroyed 12 | . 10 2 Melee 1 | . . 1 Guns 11 | . 10 1 Classes Destroyed 7 | 1 4 2 Tunneler 2 | 2 . . Hauler 1 | . 1 . Mechanic 1 | . . 1 Operator 1 | . 1 . Swarmer 3 | . 3 . Grunt 8 | . 7 1 Sentry 1 | . . 1 Best Kill Streak 5 | 2 5 1 Combat Bots Only 5 | . 5 1 Max Kills in Single Turn 1 | 1 1 1 Gunslinging . | . . . Exploded . | . . . Melee 1 | . . 1 Uniques/NPCs Destroyed . | . . . Combat | -11 -10 -9 -------- Run | Yrd Mat Mat Hostile Shots Fired 151 | . 74 77 Missed 46 | . 24 22 Damage Taken 1572 | . 618 954 Core 535 | . 125 410 Absorbed by Shields . | . . . Core Remaining (%) 75 | 100 50 . Volleys Fired 56 | 6 36 14 Largest 2 | 2 2 2 Hottest 40 | 40 40 40 Shots Fired 102 | 12 72 18 Gun 102 | 12 72 18 Cannon . | . . . Launcher . | . . . Special . | . . . Kinetic 102 | 12 72 18 Thermal . | . . . Explosive . | . . . Electromagnetic . | . . . Robot Hit Streak 19 | 4 5 19 Robot Miss Streak 3 | 1 3 . Penetration Max . | . . . Secondary Targets . | . . . Shots Hit Robots 68 | 7 38 23 Core Hits 28 | 4 20 4 Critical Kills . | . . . Critical Parts Destroyed . | . . . Critical Strikes . | . . . Melee Attacks 10 | . . 10 Impact 8 | . . 8 Slashing . | . . . Piercing . | . . . Sneak Attacks 2 | . . 2 Combat Hostiles . | . . . Follow-up Attacks . | . . . Damage Inflicted 681 | 68 379 234 Guns 590 | 68 379 143 Cannons . | . . . Explosions . | . . . Melee 71 | . . 71 Ramming 20 | . . 20 Kinetic 590 | 68 379 143 Thermal . | . . . Explosive . | . . . Electromagnetic . | . . . Impact 71 | . . 71 Slashing . | . . . Piercing . | . . . Highest Corruption 8 | . 3 8 Average Corruption 4 | . 3 8 Corruption Purged . | . . . Corruption Blocked . | . . . Effects 4 | . 3 1 Heat Flow Errors 1 | . 1 . Energy Discharges 2 | . 1 1 Data Loss (major) 1 | . 1 . Overload Shots . | . . . Overflow Damage . | . . . Projectiles . | . . . Explosions . | . . . Melee . | . . . Knockbacks . | . . . Impact . | . . . Kinetic . | . . . Secondary . | . . . Self-Inflicted Damage . | . . . Shots . | . . . Rammed 9 | . . 9 Targets Rammed 11 | . . 11 Kicked . | . . . Crushed 2 | . . 2 Highest Temperature 243 | . 243 1 Average Temperature 66 | . 69 1 Received Heat Transfer 468 | . 228 240 Siege Activations . | . . . Robots Corrupted . | . . . Combat Hostiles . | . . . Parts Fried . | . . . Impact Corruptions . | . . . Robots Melted . | . . . Combat Hostiles . | . . . Parts Melted . | . . . Heat Transferred . | . . . Parts Sabotaged . | . . . Parts Stolen . | . . . Parts Stripped . | . . . Power Chain Reactions . | . . . Alert | -11 -10 -9 ------- Run | Yrd Mat Mat Peak Influence 438 | 10 438 180 Initial 100 | . 6 100 Average 137 | 2 158 142 Maximum Alert Level 2 | . 2 . Low Security (%) 79 | 100 65 100 Level 1 17 | . 29 . Level 2 2 | . 4 . Level 3 . | . . . Level 4 . | . . . Level 5 . | . . . High Security . | . . . Max Security . | . . . Squads Dispatched 5 | . 4 1 Investigation 4 | . 4 . Extermination . | . . . Reinforcement 1 | . . 1 Assault . | . . . Garrison . | . . . Intercept . | . . . Searches Triggered . | . . . Construction Impeded . | . . . Haulers Reinforced . | . . . Active Scanning Responses . | . . . Cargo Convoy Interrupts . | . . . Stealth | -11 -10 -9 --------- Run | Yrd Mat Mat Distress Signals 2 | . 1 1 Communications Jammed . | . . . Distress Signals . | . . . Times Spotted 30 | . 22 8 Peak Tracking Total 8 | . 8 6 Tactical Retreats 6 | . 3 3 Traps | -11 -10 -9 ------- Run | Yrd Mat Mat Traps Triggered 2 | . 2 . Indirectly . | . . . Trap Hack Attempts . | . . . Triggered . | . . . Disarmed . | . . . Reprogrammed . | . . . Reused . | . . . Traps Extracted . | . . . Installed . | . . . Triggered . | . . . Machines | -11 -10 -9 ---------- Run | Yrd Mat Mat Machines Disabled . | . . . Max in Single Turn . | . . . Machines Repaired . | . . . Machines Dismantled . | . . . Machines Sabotaged 1 | . 1 . Overloaded Fab Kills . | . . . Hacking | -11 -10 -9 --------- Run | Yrd Mat Mat Machines Accessed 5 | . 4 1 Terminals 3 | . 3 . Fabricators . | . . . Repair Stations . | . . . Recycling Units 2 | . 1 1 Scanalyzers . | . . . Garrison Access . | . . . Total Hacks 13 | . 11 2 Successful 7 | . 5 2 Failed 6 | . 6 . Catastrophic . | . . . Database Lockouts . | . . . Manual 4 | . 4 . Terminals 7 | . 7 . Fabricators . | . . . Repair Stations . | . . . Recycling Units 6 | . 4 2 Scanalyzers . | . . . Garrison Access . | . . . Terminal Hacks 3 | . 3 . Prototype ID Bank 1 | . 1 . Terminal Index 1 | . 1 . Dispatch Records 1 | . 1 . Fabricator Hacks . | . . . Repair Station Hacks . | . . . Recycling Unit Hacks 3 | . 1 2 Report Inventory 2 | . 1 1 Retrieve Matter 1 | . . 1 Scanalyzer . | . . . Garrison Access Hacks . | . . . Unauthorized Hacks 1 | . 1 . Terminals 1 | . 1 . Sabotage 1 | . 1 . Fabricators . | . . . Repair Stations . | . . . Recycling Units . | . . . Scanalyzers . | . . . Garrison Access . | . . . Data Cores Recovered . | . . . Used . | . . . Hacking Detections 3 | . 3 . Full Trace Events 1 | . 1 . Feedback Events . | . . . Feedback Blocked . | . . . Robot Schematics Acquired . | . . . Robots Built . | . . . Authchips . | . . . Time . | . . . Total Robot Build Rating . | . . . Part Schematics Acquired . | . . . Parts Built . | . . . Authchips . | . . . Time . | . . . Total Part Build Rating . | . . . Parts Repaired . | . . . Time . | . . . Parts Recycled . | . . . Recycled Matter . | . . . Retrieved Matter . | . . . Retrieved Components . | . . . Parts Scanalyzed . | . . . Part Schematics Acquired . | . . . Parts Damaged . | . . . Bothacking | -11 -10 -9 ------------ Run | Yrd Mat Mat Used RIF Installer . | . . . Robots Hacked 1 | . . 1 Non-combat 1 | . . 1 Combat . | . . . Robot Hacks Applied 2 | . . 2 no_distress 1 | . . 1 find_station 1 | . . 1 Relay Couplers Released . | . . . Fabnet Peak Effective % . | . . . Robots Rewired . | . . . Allies Hacked . | . . . Hacks Repelled . | . . . Allies | -11 -10 -9 -------- Run | Yrd Mat Mat Total Allies . | . . . Largest Group . | . . . Highest-Rated Group . | . . . Highest-Rated Ally . | . . . Total Orders . | . . . Ally Attacks . | . . . Total Damage . | . . . Kills . | . . . Allies Corrupted . | . . . Allies Melted . | . . . Intel | -11 -10 -9 ------- Run | Yrd Mat Mat Robot Analysis Total . | . . . Derelict Logs Recovered . | . . . Drone Launches . | . . . Drone Recoveries . | . . . Exploration | -11 -10 -9 ------------- Run | Yrd Mat Mat Turns Passed 683 | 69 405 209 Spaces Moved 398 | 44 255 99 Core 37 | 2 2 33 Treads 25 | . . 25 Legs . | . . . Wheels 336 | 42 253 41 Hover . | . . . Flight . | . . . Fastest Speed 50 | 50 80 50 Average Speed 92 | 90 91 98 Slowest Speed 250 | 100 250 250 Overloaded Moves . | . . . Propulsion Burnouts . | . . . Robots Hopped . | . . . Cave-ins Triggered . | . . . Exploration Rate (%) 23 | 4 52 13 Regions Visited 2 Branch Regions . Pre-discovered Areas . | . . . Known Exits Taken . | . . . Unknown Exits Taken 2 | 1 1 . Scrap Searched . | . . . Spaces Dug . | . . . Terrain Destroyed . | . . . Melee . | . . . Projectile . | . . . AOE . | . . . Terrain Rammed . | . . . Walls Destroyed . | . . . Machines Disabled . | . . . Actions | -11 -10 -9 --------- Run | Yrd Mat Mat Total 602 | 63 362 177 Wait 85 | . 59 26 Move 396 | 43 254 99 Hop . | . . . Pick Up 20 | 8 5 7 Fast Attach . | . . . Attach 18 | 6 3 9 Detach . | . . . Swap 3 | . 3 . Drop 3 | . 2 1 Fire 56 | 6 36 14 Melee 10 | . . 10 Ram . | . . . Kick . | . . . Crush 11 | . . 11 Escape Stasis . | . . . Rewire . | . . . Trap . | . . . Miscellaneous . | . . . Route ------- -11/Scrapyard -10/Materials (discovered 2 exits: *Mat / [*Min]) -9/Materials History --------- Turn | Location | Event 9 | -11/Scrapyard | Discovered new exit (range 14) 70 | -11/Scrapyard | Entered Materials 298 | -10/Materials | Discovered new exit (range 16) 306 | -10/Materials | Build established: Mutant 469 | -10/Materials | Discovered new exit (range 9) 475 | -10/Materials | Entered another Materials area 475 | -9/Materials | Evolved 2 slots: Utility x1, Weapon x1 482 | -9/Materials | Lost 3 parts (1p1u1w) 560 | -9/Materials | Lost 3 parts (1n2w) 664 | -9/Materials | Core integrity fell below 50% 668 | -9/Materials | Lost 6 parts (1p2n1u2w) 679 | -9/Materials | Core integrity fell below 20% 684 | -9/Materials | Destroyed by L-31 Rogue with Katana Last Messages --------------- 00634_ Lgt. Treads destroyed. 00634_ Structural Scanner destroyed. 00634_ System corrupted by crushing effect (+4). 00635_ W-16 Scout sends out distress signal. 00635_ Imp. Ion Engine destroyed. 00636_ O-16 Technician: "IFF HANDSHAKE FAILED. SECURING TERMINAL." 00637_ Dropped Sml. Storage Unit. 00637_ Lgt. Treads destroyed. 00642_ ALERT: Hostiles spotted, dispatching reinforcements to Terminal M001. 00646_ K-01 Serf collects debris. 00647_ Acquired Hammer. 00650_ K-01 Serf collects debris. 00665_ Hammer severed. 00668_ Acquired Hammer. 00679_ System corrupted: Energy discharge (-22). 00680_ Hammer severed. 00681_ Acquired Hammer. Map ----- +----------------------------------------------------+ | ?// ?????# #?????? | | #]] #######+#####?????? | | #]] #??????? | | ????# #??????? | | ###????? | | ?##############+######????? | | ??????????## !##????? | | ??????????## = ##????? | | ############ !! ##????? | | ############ ! ##????? | | + ##????? | | ########### """"" ##????? | | ########### """"" ##????? | | #######???## """"" ##????? | | ####### ##????? | | ############+######### | | # ###### ### # | | # ###### #?# # | | + # ## #?# # | | !# % # ## #?# # | | # # ## ### # | | ## ## ?# # # | | ####### ## ?# gg # | | """ /* ## ??# #/ # | | "R" #! ## ??# # [ # | | " " # ##+#### # l@# | | # # # | | # # # | | """ # ####### | | """ # ###########?????? | | """ =# #######?????????? | | # ##??????????????? | | ####### ##??????????????? | | ####### ##??????????????? | | ?????## ##??????????????? | | ??????# ##??????????????? | | ?????? ??????????????? | | ?????? ???????????????? | | ????? ???????????????? | | ????? ###???????????????? | | ?????? ??????????????????? | | ??????????????????????????? | | ??????????????????????????? | | ??????????????????????????? | | ??????????????????????????? | | ??????????????????????????? | | ??????????????????????????? | | ??????????????????????????? | | ??????????????????????????? | | ??????????????????????????? | +----------------------------------------------------+ Best States ------------- Heat Dissipation 28 Energy Generation 12 Energy Capacity 265 Matter Stores 174 Matter Capacity 300 Sight Range 16 Terrain Scan Density 10 Evasion (%) 50 Recoil Reduction 2 Item Schematics ----------------- None Robot Schematics ------------------ None Fabricated ------------ Nothing Alien Tech Used ----------------- None Achievements -------------- Party Time Challenges ------------ None Game ------ Seed IonicPhasingGuard Manual? 0 Play Time 00:11:19 Cumulative 12.1 hours Start 2024.12.27 @ 10:40:11 End 2024.12.27 @ 10:48:57 Sessions 1 Manual Loads 0 Difficulty Rogue Special Mode None Game No. 21 Rogue 21 Adventurer 0 Explorer 0 Win Type - Total 0 Types 0/0/0/0/0/0/0/0/0 Lore% 11 Gallery% 20 Achievement% 19 Wizard Run 0 Options --------- Layout 1 ASCII 0 Keyboard 0 Movement Mouse Keybinds 0 Fullscreen 1 Font 24/Smallcaps Map View 50x35 Zoom Use 0% Tactical HUD 1 Map Filters NONE Filters NONE Steam 1 RUN: ead1e881-0089-4788-b7b7-3ccf93464de4